fUSD/lending_fUSD_20240123
["ID","MTS","AMOUNT","RATE_DAILY","PERIOD"]
[312564461,1706002245945,-187.88,0.0003279,2]
[312564464,1706002245955,-187.88,0.00032877,2]
[312564467,1706002245964,-187.88,0.00032964,2]
[312564470,1706002245973,-187.88,0.00033052,2]
[312564474,1706002245982,-187.88,0.00033139,2]
[312564478,1706002245992,-187.88,0.00033226,2]
[312564481,1706002246001,-187.88,0.00033314,2]
[312564483,1706002246010,-187.88,0.00033401,2]
[312564486,1706002246020,-187.88,0.00033488,2]
[312564489,1706002246029,-219.8,0.00035175,2]
[312564492,1706002246039,-500.0,0.000369,2]
[312564494,1706002246049,-106.09588915,0.000369,2]
[312564496,1706002246060,-393.90411085,0.000369,2]
[312564498,1706002246070,-288.32488718,0.000369,2]
[312564500,1706002246093,-211.67511282,0.000369,2]
[312564502,1706002246105,-500.0,0.000369,2]
[312564503,1706002246114,-500.0,0.000369,2]
[312564504,1706002246127,-500.0,0.000369,2]
[312564505,1706002246137,-500.0,0.000369,2]
[312564506,1706002246152,-500.0,0.000369,2]
[312564507,1706002246162,-150.0,0.00036999,2]
[312564508,1706002246172,-52856.92338049,0.00037,17]
[312564509,1706002246182,-650.0,0.00037,3]
[312564510,1706002246192,-309.88993385,0.00037,4]
[312564511,1706002246201,-426.19855582,0.00037,2]
[312564512,1706002246211,-2324.0,0.00037,88]
[312564513,1706002246220,-150.0,0.00037,9]
[312564514,1706002246231,-1563.0,0.00037,2]
[312564515,1706002246240,-19928.67849684,0.00037,2]
[312564516,1706002246252,-2425.32150316,0.00037,2]
[312564517,1706002246262,-151.0123,0.00037098,10]
[312564518,1706002246271,-295.37398535,0.00037111,2]
[312564519,1706002246485,-403.84,0.00029998,2]
[312564520,1706002246497,-2650.90732848,0.00029998,2]
[312564521,1706002246507,-500.0,0.000369,2]
[312564522,1706002246516,-124.01340209,0.00037111,2]
[312564523,1706002246530,-445.87552337,0.00037111,2]
[312564524,1706002246539,-151.0123,0.00037198,10]
[312564525,1706002246549,-1295.0,0.00037298,5]
[312564526,1706002246558,-151.0123,0.00037298,10]
[312564527,1706002246567,-151.0123,0.00037398,10]
[312564528,1706002246577,-150.0,0.00037429,2]
[312564529,1706002246586,-150.0,0.00037461,2]
[312564530,1706002246600,-1500.0,0.00037461,2]
[312564531,1706002246610,-300.0,0.00037483,2]
[312564532,1706002246624,-150.0,0.00037487,2]
[312564533,1706002246634,-150.0,0.00037491,2]
[312564534,1706002246643,-150.0,0.00037495,2]
[312564535,1706002246658,-151.0123,0.00037498,10]
[312564536,1706002246668,-200.0,0.00037505,5]
[312564537,1706002246678,-800.0,0.00037505,5]
[312564538,1706002246688,-125.33827222,0.00037505,5]
[312564539,1706002246701,-74.66172778,0.00037505,5]
[312564540,1706002246710,-150.0,0.00037516,2]
[312564541,1706002246721,-225.78827222,0.00037535,2]
[312564542,1706002246733,-81.39193101,0.00037535,2]
[312564543,1706002246742,-150.0,0.00037537,2]
[312564544,1706002246753,-150.0,0.00037543,2]
[312564545,1706002246762,-150.0,0.00037547,2]
[312564546,1706002246772,-150.0,0.00037561,2]
[312564547,1706002246783,-278.97740135,0.00037566,2]
[312564548,1706002246793,-80.33238898,0.00037571,2]
[312564634,1706002247836,-155.46978301,0.00025,2]
[312564637,1706002247846,-110.35162358,0.00029998,2]
[312564641,1706002247859,-63.52405642,0.00029998,2]
[312564643,1706002247870,-277.20648741,0.00031828,4]
[312564644,1706002247879,-1044.775,0.00031828,4]
[312564645,1706002247889,-202.21011162,0.00031828,4]
[312564646,1706002247908,-500.0,0.000369,2]
[312564647,1706002247918,-500.0,0.000369,2]
[312564649,1706002247928,-1700.87563975,0.00036999,4]
[312564650,1706002247938,-1419.66761102,0.00037571,2]
[312564651,1706002247948,-151.0123,0.00037598,10]
[312564652,1706002247959,-55555.0,0.000376,3]
[312564653,1706002247969,-150.0,0.00037601,2]
[312564654,1706002247979,-150.0,0.00037605,2]
[312564655,1706002247989,-150.0,0.00037605,2]
[312564656,1706002247999,-150.0,0.00037613,2]
[312564657,1706002248009,-150.0,0.00037615,2]
[312564658,1706002248020,-150.0,0.00037623,2]
[312564659,1706002248029,-1500.0,0.00037624,2]
[312564660,1706002248039,-150.0,0.00037628,2]
[312564661,1706002248049,-150.0,0.00037628,2]
[312564662,1706002248059,-300.0,0.00037629,2]
[312564663,1706002248069,-150.0,0.00037632,2]
[312564664,1706002248081,-150.0,0.00037633,2]
[312564665,1706002248092,-150.0,0.00037634,2]
[312564666,1706002248102,-150.0,0.00037634,2]
[312564667,1706002248112,-150.0,0.00037637,2]
[312564668,1706002248123,-150.0,0.00037638,2]
[312564669,1706002248133,-150.0,0.00037648,2]
[312564670,1706002248143,-150.0,0.00037649,2]
[312564671,1706002248161,-150.0,0.0003765,2]
[312564672,1706002248170,-1500.0,0.00037651,2]
[312564673,1706002248180,-150.0,0.00037652,2]
[312564675,1706002248190,-150.0,0.00037655,2]
[312564677,1706002248199,-150.0,0.00037655,2]
[312564679,1706002248208,-150.0,0.00037656,2]
[312564680,1706002248218,-150.0,0.00037656,2]
[312564682,1706002248227,-150.0,0.0003766,2]
[312564685,1706002248237,-150.0,0.00037662,2]
[312564686,1706002248246,-150.0,0.00037668,2]
[312564688,1706002248256,-150.0,0.0003767,2]
[312564690,1706002248265,-150.0,0.00037676,2]
[312564693,1706002248276,-150.0,0.00037677,2]
[312564695,1706002248286,-1500.0,0.00037677,2]
[312564697,1706002248295,-150.0,0.0003768,2]
[312564699,1706002248315,-151.70631307,0.00037684,2]
[312564701,1706002248327,-150.0,0.00037685,2]
[312564703,1706002248337,-150.0,0.00037685,2]
[312564707,1706002248347,-150.0,0.00037686,2]
[312564711,1706002248357,-150.0,0.00037689,2]
[312564716,1706002248368,-1500.0,0.00037692,2]
[312564720,1706002248378,-150.0,0.00037693,2]
[312564724,1706002248388,-1500.0,0.00037695,2]
[312564726,1706002248404,-151.0123,0.00037698,10]
[312564728,1706002248414,-300.0,0.00037699,2]
[312564731,1706002248424,-979.0,0.000377,3]
[312564734,1706002248434,-979.0,0.000377,3]
[312564737,1706002248444,-979.0,0.000377,3]
[312564739,1706002248454,-979.0,0.000377,3]
[312564741,1706002248463,-979.0,0.000377,3]
[312564743,1706002248473,-979.0,0.000377,3]
[312564745,1706002248483,-979.0,0.000377,3]
[312564747,1706002248492,-979.0,0.000377,3]
[312564749,1706002248501,-979.0,0.000377,3]
[312564751,1706002248511,-979.0,0.000377,3]
[312564753,1706002248521,-979.0,0.000377,3]
[312564755,1706002248530,-979.0,0.000377,3]
[312564757,1706002248539,-979.0,0.000377,3]
[312564759,1706002248549,-979.0,0.000377,3]
[312564761,1706002248558,-979.0,0.000377,3]
[312564763,1706002248567,-979.0,0.000377,3]
[312564765,1706002248577,-979.0,0.000377,3]
[312564767,1706002248587,-979.0,0.000377,3]
[312564769,1706002248597,-979.0,0.000377,3]
[312564771,1706002248606,-979.0,0.000377,3]
[312564773,1706002248617,-150.0,0.00037705,2]
[312564775,1706002248626,-150.0,0.00037708,2]
[312564777,1706002248635,-150.0,0.00037708,2]
[312564779,1706002248644,-1500.0,0.00037712,2]
[312564781,1706002248658,-150.0,0.00037712,2]
[312564783,1706002248667,-150.0,0.00037714,2]
[312564786,1706002248677,-150.0,0.00037715,2]
[312564788,1706002248687,-151.73611206,0.00037718,2]
[312564790,1706002248696,-150.0,0.00037719,2]
[312564792,1706002248705,-150.0,0.00037721,2]
[312564794,1706002248715,-1500.0,0.00037727,2]
[312564796,1706002248725,-293.29955994,0.00037727,2]
[312564798,1706002248735,-150.0,0.00037731,2]
[312564800,1706002248744,-150.0,0.00037732,2]
[312564802,1706002248754,-1543.85349851,0.00037738,2]
[312564804,1706002248763,-150.0,0.00037743,2]
[312564806,1706002248774,-150.0,0.00037744,2]
[312564808,1706002248784,-300.0,0.00037746,2]
[312564810,1706002248795,-893.41319272,0.00037746,2]
[312564812,1706002248805,-150.0,0.00037748,2]
[312564814,1706002248814,-300.0,0.00037748,2]
[312564816,1706002248824,-1500.0,0.00037749,2]
[312564818,1706002248834,-150.0,0.00037754,2]
[312564820,1706002248844,-150.0,0.00037755,2]
[312564822,1706002248853,-300.0,0.00037757,2]
[312564825,1706002248863,-150.0,0.00037757,2]
[312564827,1706002248873,-243.51,0.00037758,2]
[312564828,1706002248882,-150.0,0.0003776,2]
[312564830,1706002248891,-150.0,0.00037763,2]
[312564833,1706002248905,-150.0,0.00037768,2]
[312564835,1706002248914,-150.0,0.00037772,2]
[312564837,1706002248923,-150.0,0.00037777,2]
[312564839,1706002248933,-239.17956327,0.00037777,2]
[312564841,1706002248943,-150.0,0.00037778,2]
[312564842,1706002248952,-429691.10308176,0.0003778,7]
[312564843,1706002248961,-247086.91517248,0.0003778,2]
[312564844,1706002248992,-517.06190698,0.00031828,4]
[312564845,1706002249001,-500.0,0.000369,2]
[312564846,1706002249010,-740.51128596,0.0003778,2]
[312564847,1706002249022,-3781.87350375,0.0003778,2]
[312564848,1706002249051,-314.65275,0.0003778,2]
[312564849,1706002249066,-800.0,0.0003778,2]
[312564850,1706002249100,-656.66093556,0.0003778,2]
[312564851,1706002249128,-6313.94319479,0.0003778,2]
[312564852,1706002249140,-2966.87119999,0.0003778,2]
[312564853,1706002249155,-1056.84036886,0.0003778,2]
[312564854,1706002249167,-2642.01559954,0.0003778,2]
[312564856,1706002249183,-1872.72955445,0.0003778,2]
[312564858,1706002249195,-2958.97732058,0.0003778,2]
[312564860,1706002249207,-5537.96412195,0.0003778,2]
[312564862,1706002249222,-2049.30000001,0.0003778,2]
[312564864,1706002249234,-10119.6463104,0.0003778,2]
[312564865,1706002249245,-10081.78706532,0.0003778,2]
[312564866,1706002249257,-315.41991154,0.0003778,2]
[312564867,1706002249269,-457.95438,0.0003778,2]
[312564868,1706002249280,-1106.09572064,0.0003778,2]
[312564869,1706002249292,-3128.5188,0.0003778,2]
[312564870,1706002249309,-2645.57653317,0.0003778,2]
[312564871,1706002249331,-0.05663075,0.0003778,2]
[312564872,1706002249343,-465.67000015,0.0003778,2]
[312564873,1706002249355,-561.424,0.0003778,2]
[312564874,1706002249367,-10233.78682322,0.0003778,2]
[312564875,1706002249379,-549.94596023,0.0003778,2]
[312564876,1706002249391,-1384.24052799,0.0003778,2]
[312564877,1706002249407,-955.67281327,0.0003778,2]
[312564878,1706002250447,-95923.40148955,0.0003778,2]
[312564879,1706002250461,-150.0,0.0003778,2]
[312564880,1706002250476,-150.0,0.00037788,2]
[312564881,1706002250489,-150.0,0.00037791,2]
[312564882,1706002250503,-150.0,0.00037792,2]
[312564883,1706002250517,-166.91230757,0.00037793,2]
[312564884,1706002250534,-150.0,0.00037796,2]
[312564885,1706002250547,-150.0,0.00037797,2]
[312564886,1706002250558,-151.0123,0.00037798,10]
[312564887,1706002250575,-150.0,0.00037802,2]
[312564888,1706002250589,-150.0,0.00037804,2]
[312564889,1706002250607,-150.01,0.00037807,2]
[312564890,1706002250622,-3299.43555455,0.00037807,2]
[312564891,1706002250634,-499.18,0.00037808,2]
[312564892,1706002250647,-551.79,0.00037808,2]
[312564893,1706002250666,-300.0,0.00037809,2]
[312564894,1706002250680,-1000.0,0.00037811,2]
[312564895,1706002250696,-150.0,0.00037812,2]
[312564896,1706002250711,-303.75827176,0.00037824,2]
[312564897,1706002250726,-300.0,0.00037825,2]
[312564898,1706002250739,-150.0,0.00037828,2]
[312564899,1706002250752,-150.0,0.00037829,2]
[312564900,1706002250764,-150.0,0.00037829,2]
[312564901,1706002250775,-150.0,0.00037829,2]
[312564902,1706002250788,-150.0,0.00037834,2]
[312564903,1706002250802,-150.0,0.00037835,2]
[312564904,1706002250816,-150.0,0.00037836,2]
[312564905,1706002250828,-150.0,0.00037837,2]
[312564906,1706002250841,-198.50076002,0.00037837,2]
[312564907,1706002250852,-150.0,0.00037838,2]
[312564908,1706002250865,-150.0,0.00037839,2]
[312564909,1706002250877,-150.0,0.0003784,2]
[312564910,1706002250890,-150.0,0.00037844,2]
[312564911,1706002250904,-150.0,0.00037846,2]
[312564912,1706002250915,-150.0,0.00037847,2]
[312564913,1706002250928,-150.0,0.00037853,2]
[312564914,1706002250940,-150.0,0.00037854,2]
[312564915,1706002250966,-150.0,0.00037855,2]
[312564916,1706002250979,-150.0,0.00037856,2]
[312564917,1706002250992,-153.49345938,0.00037859,2]
[312564918,1706002251006,-150.0,0.0003786,2]
[312564919,1706002251020,-300.0,0.0003786,2]
[312564920,1706002251033,-150.0,0.00037861,2]
[312564921,1706002251046,-1500.0,0.00037862,2]
[312564922,1706002251059,-150.0,0.00037863,2]
[312564923,1706002251072,-150.0,0.00037864,2]
[312564924,1706002251088,-150.0,0.00037864,2]
[312564925,1706002251101,-150.0,0.00037865,2]
[312564926,1706002251114,-150.0,0.00037866,2]
[312564927,1706002251128,-150.0,0.00037866,2]
[312564928,1706002251141,-150.0,0.00037868,2]
[312564929,1706002251162,-150.0,0.00037874,2]
[312564930,1706002251175,-150.0,0.00037876,2]
[312564931,1706002251187,-150.0,0.00037876,2]
[312564932,1706002251200,-150.0,0.00037883,2]
[312564933,1706002251213,-150.0,0.00037883,2]
[312564934,1706002251226,-150.0,0.00037886,2]
[312564935,1706002251238,-150.0,0.0003789,2]
[312564936,1706002251250,-150.0,0.00037895,2]
[312564937,1706002251262,-1890.6194782,0.00037896,2]
[312564938,1706002251274,-2162.3046856,0.00037896,2]
[312564939,1706002251287,-4234.0660227,0.00037896,2]
[312564940,1706002251298,-84310.2300705,0.00037896,2]
[312564941,1706002251312,-7340.3701904,0.00037896,2]
[312564942,1706002251324,-654.12664223,0.00037898,4]
[312564943,1706002251336,-361.90503468,0.00037898,4]
[312564944,1706002251348,-151.0123,0.00037898,10]
[312564945,1706002251361,-414.0092,0.00037899,4]
[312564946,1706002251372,-158.534377,0.000379,8]
[312564947,1706002251383,-1000.0,0.000379,25]
[312564948,1706002251394,-42992.39782914,0.000379,3]
[312564949,1706002251416,-456.09093314,0.000379,3]
[312564950,1706002251430,-2973.76258503,0.000379,3]
[312564951,1706002251646,-39238.99999999,0.000379,3]
[312564952,1706002251667,-333.011998,0.000379,3]
[312564953,1706002251681,-16000.0,0.000379,3]
[312564954,1706002251696,-585.99,0.000379,3]
[312564955,1706002251766,-530.20546876,0.000379,3]
[312564956,1706002251782,-285.70131635,0.000379,3]
[312564957,1706002251797,-56263.03199999,0.000379,3]
[312564959,1706002258493,4143.2525,6.758e-05,2]
[312564970,1706002280494,4143.2525,5.069e-05,2]
[312564974,1706002296499,4143.2525,5.069e-05,2]
[312564979,1706002314508,4143.2525,5.069e-05,2]
[312564982,1706002328505,2139.2225,5.069e-05,2]
[312564988,1706002338291,25000.0,0.00033,30]
[312564991,1706002341530,-251.3999,0.000226,2]
[312564993,1706002372106,-206.0,0.00021734,2]
[312564997,1706002439258,211.71,0.00032078,120]
[312565000,1706002713682,204.0,0.00020734,2]
[312565018,1706003207320,-164.96152334,0.00021731,2]
[312565096,1706003432357,-1265.93744044,0.00021732,2]
[312565097,1706003432367,-722.14,0.00021733,2]
[312565098,1706003432376,-711.61,0.00021733,2]
[312565099,1706003432386,-734.85,0.00021733,2]
[312565100,1706003432395,-718.27,0.00021734,2]
[312565101,1706003432404,-736.81,0.00021734,2]
[312565102,1706003432414,-150.0,0.00022356,2]
[312565103,1706003432423,-723.15,0.00022374,2]
[312565104,1706003432433,-150.0,0.00022548,2]
[312565105,1706003432442,-300.0,0.00022548,2]
[312565106,1706003432451,-737.33,0.00022549,2]
[312565107,1706003432461,-499.99,0.00022549,2]
[312565108,1706003432470,-408.02,0.00022549,2]
[312565109,1706003432480,-150.99,0.00022549,2]
[312565110,1706003432491,-277.53,0.000227,2]
[312565111,1706003432500,-711.24,0.000227,2]
[312565112,1706003432509,-727.94,0.000227,2]
[312565113,1706003432518,-1147.9939,0.000227,2]
[312565114,1706003432530,-1000.05,0.000227,2]
[312565115,1706003432539,-155.0,0.000228,2]
[312565116,1706003432548,-200.0,0.00022816,2]
[312565117,1706003432557,-1752.96503158,0.0002289,2]
[312565118,1706003432566,-408.21030181,0.00022898,2]
[312565119,1706003432576,-223.68470983,0.00022899,2]
[312565120,1706003432585,-22618.05411628,0.000229,2]
[312565125,1706003433226,-940.9021208,0.000229,2]
[312565126,1706003433238,-390.34914,0.000229,2]
[312565127,1706003433276,-1959.3,0.000229,2]
[312565128,1706003433288,-5094.62967272,0.000229,2]
[312565129,1706003433410,-1570.28,0.000229,2]
[312565130,1706003433422,-612.90951479,0.000229,2]
[312565131,1706003433434,-793.50547224,0.000229,2]
[312565132,1706003433457,-526.46031176,0.000229,2]
[312565133,1706003433469,-2269.72660376,0.000229,2]
[312565134,1706003433481,-257.11704311,0.000229,2]
[312565135,1706003433493,-5123.685634,0.000229,2]
[312565136,1706003433509,-312.25755845,0.000229,2]
[312565137,1706003433524,-596.98071722,0.000229,2]
[312565138,1706003433534,-201.31020997,0.00024,2]
[312565139,1706003433543,-539.08,0.00024152,2]
[312565140,1706003433553,-878.32907281,0.000242,2]
[312565175,1706003438379,-205.0,0.00022661,2]
[312565177,1706003438390,-1217.67092719,0.000242,2]
[312565179,1706003438398,-747.89331272,0.000242,2]
[312565181,1706003438407,-4082.99178444,0.000243,2]
[312565183,1706003438419,-389.05442286,0.000243,2]
[312565186,1706003438430,-508.749995,0.000243,2]
[312565188,1706003438442,-1275.1268,0.000243,2]
[312565190,1706003438466,-430.0769977,0.000243,2]
[312565191,1706003438475,-123.7521643,0.00024803,2]
[312565192,1706003438491,-86.2478357,0.00024803,2]
[312565193,1706003438500,-229.57187333,0.00025,2]
[312565194,1706003438511,-350.0,0.00025,3]
[312565195,1706003438521,-303.74458375,0.00025,2]
[312565196,1706003438533,-509.94504749,0.00025,2]
[312565197,1706003438553,-1075.57554515,0.00025,2]
[312565198,1706003438562,-1481.68,0.00026,2]
[312565199,1706003438572,-250.0,0.00026057,2]
[312565200,1706003438582,-386.57,0.0002607,2]
[312565201,1706003438591,-23900.0,0.00026071,2]
[312565202,1706003438600,-219.8,0.00026072,2]
[312565203,1706003438609,-1000.0,0.00026099,2]
[312565204,1706003438618,-250.0,0.00026099,2]
[312565205,1706003438627,-250.0,0.00026114,2]
[312565206,1706003438636,-770.63,0.00026123,2]
[312565207,1706003438646,-2000.0,0.00026139,2]
[312565208,1706003438655,-150.0,0.0002617,2]
[312565209,1706003438665,-219.43,0.00026315,2]
[312565210,1706003438674,-834.39,0.00026318,2]
[312565211,1706003438684,-167.71,0.00026366,2]
[312565212,1706003438694,-539.08,0.00026416,2]
[312565213,1706003438703,-341.35763106,0.00026575,2]
[312565214,1706003438716,-1024.65236894,0.00026575,2]
[312565215,1706003438725,-367.86,0.00026575,2]
[312565216,1706003438736,-205.0,0.0002681,8]
[312565217,1706003438745,-167.0,0.00026968,2]
[312565218,1706003438754,-400.0,0.00027,3]
[312565219,1706003438764,-416.53728954,0.00027,2]
[312565220,1706003438774,-167.71,0.00027053,2]
[312565221,1706003438785,-770.63,0.00027089,2]
[312565223,1706003438795,-1561.61,0.00027123,2]
[312565225,1706003438804,-293.0,0.00027284,2]
[312565226,1706003438813,-747.89331272,0.00027297,2]
[312565227,1706003438823,-150.32,0.00027397,2]
[312565228,1706003438834,-195.97,0.00027397,2]
[312565229,1706003438844,-303.44654436,0.00027397,2]
[312565230,1706003438857,-5329.48345564,0.00027397,2]
[312565232,1706003438866,-1481.68,0.00027644,2]
[312565233,1706003438877,-167.71,0.0002774,2]
[312565234,1706003438886,-150.32,0.00027854,2]
[312565235,1706003438896,-689.47449739,0.00028,2]
[312565236,1706003438905,-770.63,0.00028056,2]
[312565237,1706003438914,-167.0,0.0002808,2]
[312565238,1706003438924,-150.32,0.00028311,2]
[312565239,1706003438933,-200.33,0.0002855,2]
[312565240,1706003438942,-539.08,0.0002868,2]
[312565241,1706003438951,-150.32,0.00028767,2]
[312565242,1706003438961,-947.0,0.00028772,2]
[312565243,1706003438970,-837.0,0.00028772,2]
[312565244,1706003438980,-703.0,0.00028772,2]
[312565245,1706003438989,-171.727,0.00028772,2]
[312565246,1706003438998,-215.0,0.00028772,2]
[312565247,1706003439007,-1114.538,0.00028772,2]
[312565248,1706003439017,-1022.091,0.00028772,2]
[312565249,1706003439028,-499.673,0.00028772,2]
[312565250,1706003439037,-998.0,0.00028772,2]
[312565251,1706003439048,-426.0,0.00028772,2]
[312565252,1706003439058,-319.0,0.00028772,2]
[312565253,1706003439067,-253.668,0.00028772,2]
[312565254,1706003439077,-867.0,0.00028772,2]
[312565255,1706003439086,-252.942,0.00028772,2]
[312565256,1706003439096,-250.0,0.00028772,2]
[312565257,1706003439106,-157.528,0.00028772,2]
[312565258,1706003439115,-209.925,0.00028772,2]
[312565259,1706003439124,-549.883,0.00028772,2]
[312565260,1706003439134,-197.0,0.00028772,2]
[312565261,1706003439143,-218.835,0.00028772,2]
[312565262,1706003439153,-237.289,0.00028772,2]
[312565263,1706003439162,-176.0,0.00028772,2]
[312565264,1706003439171,-1031.0,0.00028772,2]
[312565265,1706003439180,-150.185,0.00028772,2]
[312565266,1706003439189,-151.015,0.00028772,2]
[312565267,1706003439198,-210.568,0.00028772,2]
[312565268,1706003439208,-195.97,0.00028822,2]
[312565269,1706003439217,-450.0,0.00029,3]
[312565270,1706003439227,-770.63,0.00029022,2]
[312565271,1706003439237,-1849.01993438,0.00029098,28]
[312565272,1706003439246,-167.0,0.00029193,2]
[312565273,1706003439256,-150.32,0.00029224,2]
[312565274,1706003439265,-1481.68,0.00029288,2]
[312565275,1706003439274,-200.0,0.00029359,3]
[312565276,1706003439286,-1000.0,0.00029362,2]
[312565277,1706003439295,-200.33,0.00029559,2]
[312565278,1706003439304,-150.32,0.0002968,2]
[312565279,1706003439314,-251.3999,0.000298,2]
[312565280,1706003439323,-168.69048402,0.0002989,2]
[312565281,1706003439332,-2000.0,0.000299,3]
[312565282,1706003439342,-873.8874,0.000299,2]
[312565283,1706003439352,-5202.4581,0.000299,2]
[312565284,1706003439361,-560.0635,0.000299,2]
[312565285,1706003439371,-200.0,0.000299,10]
[312565286,1706003439381,-2245.03656717,0.000299,4]
[312565287,1706003439389,-2026.5976,0.000299,2]
[312565288,1706003439398,-528.39710743,0.000299,2]
[312565289,1706003439407,-380.59613527,0.000299,2]
[312565290,1706003439417,-186.74090253,0.000299,2]
[312565291,1706003439426,-770.63,0.00029989,2]
[312565292,1706003439436,-252.52,0.0002999,2]
[312565293,1706003439445,-252.52,0.0002999,2]
[312565294,1706003439455,-252.52,0.0002999,2]
[312565295,1706003439466,-252.52,0.0002999,2]
[312565296,1706003439475,-5623.87809387,0.0003,2]
[312565297,1706003439487,-357.81564083,0.0003,2]
[312565298,1706003439497,-40678.2052449,0.0003,4]
[312565299,1706003439506,-105486.36818364,0.0003,2]
[312565300,1706003439518,-103767.63632906,0.0003,2]
[312565305,1706003440969,-299.01,0.00028772,2]
[312565306,1706003440979,-294.0,0.00028772,2]
[312565307,1706003440988,-802.59701373,0.0003,2]
[312565308,1706003441000,-45739.83398665,0.0003,2]
[312565309,1706003441011,-8883.99999996,0.0003,2]
[312565310,1706003441023,-252.62561014,0.0003,2]
[312565311,1706003441205,-4479.92,0.0003,2]
[312565312,1706003441217,-1575.86023051,0.0003,2]
[312565313,1706003441873,-91.53979858,0.0003,2]
[312565357,1706003443873,-1910.77177732,0.0003,2]
[312565358,1706003443884,-327.71451975,0.0003,2]
[312565359,1706003443895,-403.96999975,0.0003,2]
[312565360,1706003443919,-3789.79928763,0.0003,2]
[312565361,1706003443929,-26862.95683226,0.0003,2]
[312565362,1706003443941,-17788.05515993,0.0003,2]
[312565363,1706003443952,-9454.36788333,0.0003,2]
[312565364,1706003443992,-3996.26774721,0.0003,2]
[312565365,1706003444003,-567.728,0.0003,2]
[312565368,1706003444041,-8955.07200209,0.0003,2]
[312565370,1706003444054,-62622.4327213,0.0003,2]
[312565371,1706003444066,-28337.54118474,0.0003,2]
[312565372,1706003444083,-1567.88803327,0.0003,2]
[312565401,1706003446872,-7214.86413295,0.0003,2]
[312565402,1706003446943,-444.98121872,0.0003,2]
[312565403,1706003447008,-1045.36940519,0.0003,2]
[312565404,1706003447020,-355.11429896,0.0003,2]
[312565405,1706003447148,-1099.07761918,0.0003,2]
[312565406,1706003447160,-1954.45,0.0003,2]
[312565407,1706003447209,-1963.9,0.0003,2]
[312565408,1706003447222,-1122.0,0.0003,2]
[312565409,1706003447508,-227230.31328308,0.0003,2]
[312565410,1706003447518,-155.0,0.0003,2]
[312565411,1706003447527,-203.0,0.0003,2]
[312565412,1706003447538,-411.0,0.00030012,2]
[312565413,1706003447547,-154.67,0.00030137,2]
[312565414,1706003447557,-150.32,0.00030137,2]
[312565415,1706003447566,-155.65633722,0.00030148,7]
[312565416,1706003447576,-167.0,0.00030306,2]
[312565417,1706003447585,-434.16424201,0.00030474,2]
[312565418,1706003447594,-200.33,0.00030569,2]
[312565419,1706003447604,-150.32,0.00030594,2]
[312565420,1706003447613,-528.39710743,0.0003065,2]
[312565421,1706003447623,-1481.68,0.00030931,2]
[312565422,1706003447632,-539.08,0.00030944,2]
[312565423,1706003447642,-205.0,0.00030958,14]
[312565424,1706003447651,-500.0,0.00031,3]
[312565425,1706003447660,-2500.0,0.00031,2]
[312565426,1706003447670,-150.32,0.0003105,2]
[312565427,1706003447679,-528.39710743,0.000314,2]
[312565428,1706003447688,-167.0,0.00031419,2]
[312565429,1706003447697,-150.32,0.00031507,2]